Cogmind - Beta 12 @@@ ROGUE MODE // 2023.10.27 @ 17:42:52 Player: Shin Result: Destroyed by as-98307 with Assembled Rifle Performance ------------- Evolutions (0) 0 Regions Visited (2) 400 Robots Destroyed (16) 80 Value Destroyed (353) 353 Prototype IDs (0) 0 Alien Tech Used (0) 0 Bonus (0) 0 TOTAL SCORE: 833 Bonus ------- None Cogmind --------- Core Integrity 0/250 Matter 298/300 Energy 250/250 System Corruption 0% Temperature Cool (0) Movement Treading (320) Ox2 Location -10/Mines Parts ------- > --- POWER (1) -------- Ion Engine > --- PROPULSION (2) --- Light Treads Compact Wheel > --- UTILITY (2) ------ Heat Sink High-capacity Storage Unit > --- WEAPON (2) ------- Small Laser Light Assault Rifle > --- INVENTORY (20) --- Ion Engine Ion Engine Light Treads Aluminum Leg Aluminum Leg Wheel Heat Sink High-capacity Battery (250) High-capacity Matter Pod (163) Structural Scanner Sensor Array Targeting Computer Tractor Beam EM Pulse Gun Medium Laser Light Assault Rifle Grenade Launcher Grenade Launcher Grenade Launcher Peak State ------------ > --- POWER ------------ Ion Engine > --- PROPULSION ------- Light Treads Compact Wheel > --- UTILITY ---------- Heat Sink High-capacity Storage Unit > --- WEAPON ----------- Small Laser Beam Cannon > --- INVENTORY -------- Light Treads Aluminum Leg Aluminum Leg Heat Sink Structural Scanner Tractor Beam EM Pulse Gun Light Assault Rifle Light Assault Rifle Grenade Launcher [Rating: 8] Favorites ----------- Power Ion Engine Engine Ion Engine Propulsion Compact Wheel Treads Light Treads Leg Aluminum Leg Wheel Compact Wheel Utility High-capacity Storage Unit Device Heat Sink Storage High-capacity Storage Unit Weapon Small Laser Energy Gun Small Laser Energy Cannon Beam Cannon Ballistic Gun Light Assault Rifle Build | -11 -10 -10 ------- Run | Jun Mat Min Slots Evolved . | . . . Power . | . . . Propulsion . | . . . Utility . | . . . Weapon . | . . . Parts Attached 10 | . 10 . Power 1 | . 1 . Engine 1 | . 1 . Core . | . . . Reactor . | . . . Propulsion 4 | . 4 . Treads 1 | . 1 . Leg . | . . . Wheel 3 | . 3 . Hover . | . . . Flight . | . . . Utility 2 | . 2 . Device 1 | . 1 . Storage 1 | . 1 . Processor . | . . . Hackware . | . . . Protection . | . . . Artifact . | . . . Weapon 3 | . 3 . Energy Gun 1 | . 1 . Energy Cannon 1 | . 1 . Ballistic Gun 1 | . 1 . Ballistic Cannon . | . . . Launcher . | . . . Special Weapon . | . . . Impact Weapon . | . . . Slashing Weapon . | . . . Piercing Weapon . | . . . Special Melee Weapon . | . . . Unidentified Prototypes . | . . . Parts Lost 5 | . 5 . Power 1 | . 1 . Propulsion 2 | . 2 . Utility . | . . . Weapon 2 | . 2 . Highest Loss Streak 3 | . 3 . To Critical Strikes . | . . . Average Slot Usage (%) 96 | . 96 100 Engine 14 | . 14 14 Treads 10 | . 10 14 Leg 2 | . 2 . Wheel 15 | . 15 14 Device 11 | . 10 14 Storage 14 | . 14 14 Energy Gun 12 | . 12 14 Energy Cannon 8 | . 8 . Ballistic Gun 7 | . 7 14 Naked Turns . | . . . Heaviest Build 50 | 13 50 48 Greatest Support 26 | 20 26 16 Greatest Overweight (x) 4 | . 4 2 Average Overweight (x) 1 | . 1 2 Largest Inventory Capacity 20 | 8 20 20 Average Capacity 19 | 8 19 20 Most Carried 19 | 6 19 19 Average Carried 11 | 6 11 19 Final Capacity 20 | 8 20 20 Final Carried 19 | 6 19 19 Class Distribution -------------------- 100% | Mutant Dominant Class ---------------- Mutant | -10/Materials Mutant | -10/Mines Resources | -11 -10 -10 ----------- Run | Jun Mat Min Matter Collected 518 | 200 318 . Remotely . | . . . Salvage Created 563 | . 563 . Parts 32 | . 32 . Haulers Intercepted 1 | . 1 . Recyclers Shooed . | . . . Parts Field Recycled . | . . . Retrieved Matter . | . . . Parts Self-Destructed . | . . . Prevented . | . . . Kills | -11 -10 -10 ------- Run | Jun Mat Min Combat Hostiles Destroyed 14 | . 14 . Guns 5 | . 5 . Cannons 8 | . 8 . Classes Destroyed 4 | . 4 . Hauler 1 | . 1 . Recycler 1 | . 1 . Swarmer 6 | . 6 . Grunt 8 | . 8 . Best Kill Streak 6 | . 6 . Combat Bots Only 6 | . 6 . Max Kills in Single Turn 1 | . 1 . Gunslinging . | . . . Exploded . | . . . Melee . | . . . Uniques/NPCs Destroyed . | . . . Combat | -11 -10 -10 -------- Run | Jun Mat Min Damage Taken 886 | . 874 12 Core 252 | . 240 12 Absorbed by Shields . | . . . Core Remaining (%) 100 | 100 . . Volleys Fired 47 | . 45 2 Largest 2 | . 2 2 Hottest 100 | . 100 60 Shots Fired 93 | . 89 4 Gun 61 | . 57 4 Cannon 32 | . 32 . Launcher . | . . . Special . | . . . Kinetic 34 | . 32 2 Thermal 59 | . 57 2 Explosive . | . . . Electromagnetic . | . . . Robot Hit Streak 23 | . 23 1 Robot Miss Streak 3 | . 3 3 Penetration Max . | . . . Secondary Targets 1 | . 1 . Max Gunslinging Chain 1 | . 1 . Shots Hit Robots 63 | . 62 1 Core Hits 21 | . 21 . Critical Kills . | . . . Critical Parts Destroyed . | . . . Critical Strikes . | . . . Melee Attacks . | . . . Impact . | . . . Slashing . | . . . Piercing . | . . . Sneak Attacks . | . . . Combat Hostiles . | . . . Follow-up Attacks . | . . . Damage Inflicted 844 | . 836 8 Guns 457 | . 449 8 Cannons 387 | . 387 . Explosions . | . . . Melee . | . . . Ramming . | . . . Kinetic 217 | . 209 8 Thermal 627 | . 627 . Explosive . | . . . Electromagnetic . | . . . Impact . | . . . Slashing . | . . . Piercing . | . . . Highest Corruption . | . . . Average Corruption . | . . . Corruption Purged . | . . . Corruption Blocked . | . . . Overload Shots . | . . . Overflow Damage . | . . . Projectiles . | . . . Explosions . | . . . Melee . | . . . Knockbacks . | . . . Impact . | . . . Kinetic . | . . . Secondary . | . . . Self-Inflicted Damage . | . . . Shots . | . . . Rammed . | . . . Targets Rammed . | . . . Kicked . | . . . Crushed . | . . . Highest Temperature 429 | . 429 . Average Temperature 108 | . 108 . Received Heat Transfer 378 | . 378 . Effects 2 | . 2 . Shutdowns 2 | . 2 . Siege Activations . | . . . Robots Corrupted . | . . . Combat Hostiles . | . . . Parts Fried . | . . . Impact Corruptions . | . . . Robots Melted 1 | . 1 . Combat Hostiles 1 | . 1 . Parts Melted 1 | . 1 . Heat Transferred 1364 | . 1364 . Parts Sabotaged . | . . . Parts Stolen . | . . . Parts Stripped . | . . . Power Chain Reactions . | . . . Missiles Intercepted . | . . . Alert | -11 -10 -10 ------- Run | Jun Mat Min Peak Influence 240 | . 240 14 Initial 14 | . . 14 Average 60 | . 63 14 Maximum Alert Level 1 | . 1 . Low Security (%) 90 | 100 89 100 Level 1 9 | . 10 . Level 2 . | . . . Level 3 . | . . . Level 4 . | . . . Level 5 . | . . . High Security . | . . . Max Security . | . . . Squads Dispatched 3 | . 3 . Investigation 3 | . 3 . Extermination . | . . . Reinforcement . | . . . Assault . | . . . Garrison . | . . . Intercept . | . . . Searches Triggered . | . . . Construction Impeded . | . . . Haulers Reinforced . | . . . Active Scanning Responses . | . . . Cargo Convoy Interrupts . | . . . Stealth | -11 -10 -10 --------- Run | Jun Mat Min Distress Signals 2 | . 2 . Communications Jammed . | . . . Distress Signals . | . . . Times Spotted 29 | . 28 1 Peak Tracking Total 8 | . 8 2 Tactical Retreats . | . . . Traps | -11 -10 -10 ------- Run | Jun Mat Min Traps Triggered 2 | . 2 . Indirectly . | . . . Trap Hack Attempts . | . . . Triggered . | . . . Disarmed . | . . . Reprogrammed . | . . . Reused . | . . . Traps Extracted . | . . . Installed . | . . . Triggered . | . . . Machines | -11 -10 -10 ---------- Run | Jun Mat Min Machines Disabled . | . . . Max in Single Turn . | . . . Machines Repaired . | . . . Machines Sabotaged . | . . . Overloaded Fab Kills . | . . . Hacking | -11 -10 -10 --------- Run | Jun Mat Min Machines Accessed 8 | . 8 . Terminals 7 | . 7 . Fabricators . | . . . Repair Stations . | . . . Recycling Units 1 | . 1 . Scanalyzers . | . . . Garrison Access . | . . . Total Hacks 21 | . 21 . Successful 6 | . 6 . Failed 15 | . 15 . Catastrophic 1 | . 1 . Database Lockouts . | . . . Manual 9 | . 9 . Terminals 16 | . 16 . Fabricators . | . . . Repair Stations . | . . . Recycling Units 5 | . 5 . Scanalyzers . | . . . Garrison Access . | . . . Terminal Hacks . | . . . Fabricator Hacks . | . . . Repair Station Hacks . | . . . Recycling Unit Hacks 1 | . 1 . Retrieve Components 1 | . 1 . Scanalyzer . | . . . Garrison Access Hacks . | . . . Unauthorized Hacks 5 | . 5 . Terminals 3 | . 3 . Botnet 3 | . 3 . Fabricators . | . . . Repair Stations . | . . . Recycling Units 2 | . 2 . Reject 1 | . 1 . Mask 1 | . 1 . Scanalyzers . | . . . Garrison Access . | . . . Data Cores Recovered . | . . . Used . | . . . Hacking Detections 7 | . 7 . Full Trace Events 1 | . 1 . Feedback Events . | . . . Feedback Blocked . | . . . Robot Schematics Acquired . | . . . Robots Built . | . . . Authchips . | . . . Time . | . . . Total Robot Build Rating . | . . . Part Schematics Acquired . | . . . Parts Built . | . . . Authchips . | . . . Time . | . . . Total Part Build Rating . | . . . Parts Repaired . | . . . Time . | . . . Parts Recycled . | . . . Recycled Matter . | . . . Retrieved Matter . | . . . Retrieved Components 10 | . 10 . Parts Scanalyzed . | . . . Part Schematics Acquired . | . . . Parts Damaged . | . . . Bothacking | -11 -10 -10 ------------ Run | Jun Mat Min Used RIF Installer . | . . . Robots Hacked . | . . . Non-combat . | . . . Combat . | . . . Robot Hacks Applied . | . . . Relay Couplers Released . | . . . Fabnet Peak Effective % . | . . . Robots Rewired . | . . . Allies Hacked . | . . . Hacks Repelled . | . . . Allies | -11 -10 -10 -------- Run | Jun Mat Min Total Allies . | . . . Largest Group . | . . . Highest-Rated Group . | . . . Highest-Rated Ally . | . . . Total Orders . | . . . Ally Attacks . | . . . Total Damage . | . . . Kills . | . . . Allies Corrupted . | . . . Allies Melted . | . . . Intel | -11 -10 -10 ------- Run | Jun Mat Min Robot Analysis Total . | . . . Derelict Logs Recovered . | . . . Drone Launches . | . . . Drone Recoveries . | . . . Exploration | -11 -10 -10 ------------- Run | Jun Mat Min Turns Passed 1132 | 4 1059 69 Spaces Moved 625 | 4 571 50 Core . | . . . Treads 87 | . 87 . Legs 72 | 4 68 . Wheels 466 | . 416 50 Hover . | . . . Flight . | . . . Fastest Speed 105 | 120 105 130 Average Speed 153 | 120 156 130 Slowest Speed 320 | 120 320 130 Overloaded Moves . | . . . Propulsion Burnouts . | . . . Robots Hopped . | . . . Cave-ins Triggered . | . . . Exploration Rate (%) 33 | 2 80 19 Regions Visited 2 Branch Regions 1 Pre-discovered Areas . | . . . Known Exits Taken . | . . . Unknown Exits Taken 2 | 1 1 . Scrap Searched . | . . . Spaces Dug . | . . . Terrain Destroyed . | . . . Melee . | . . . Projectile . | . . . AOE . | . . . Terrain Rammed . | . . . Walls Destroyed . | . . . Machines Disabled . | . . . Actions | -11 -10 -10 --------- Run | Jun Mat Min Total 707 | 3 652 52 Wait 6 | . 6 . Move 623 | 3 570 50 Hop . | . . . Pick Up 20 | . 20 . Fast Attach . | . . . Attach 7 | . 7 . Detach . | . . . Swap 3 | . 3 . Drop 1 | . 1 . Fire 47 | . 45 2 Melee . | . . . Ram . | . . . Kick . | . . . Crush . | . . . Escape Stasis . | . . . Rewire . | . . . Trap . | . . . Miscellaneous . | . . . Route ------- -11/Junkyard -10/Materials (discovered 3 exits: [*Mat x2] / [*Min]) -10/Mines History --------- Turn | Location | Event 1 | -11/Junkyard | Discovered new exit (range 3) 5 | -11/Junkyard | Entered Materials 224 | -10/Materials | Core integrity fell below 50% 273 | -10/Materials | Lost 3 parts (1p1n1w) 317 | -10/Materials | Build established: Mutant 559 | -10/Materials | Discovered new exit (range 3) 701 | -10/Materials | Discovered new exit (range 15) 754 | -10/Materials | Core integrity fell below 20% 933 | -10/Materials | Discovered new exit (range 10) 1064 | -10/Materials | Entered Mines 1106 | -10/Mines | Met a Derelict bent on vengeance 1129 | -10/Mines | Excavation squad dispatched 1129 | -10/Mines | A large section of the Mines collapsed 1133 | -10/Mines | Destroyed by as-98307 with Assembled Rifle Last Messages --------------- Aluminum Leg Lgt. Ion Engine Ion Engine Aluminum Leg Aluminum Leg Sml. Storage Unit Aluminum Leg 01041_ Connecting with Terminal... >>Trojan(Botnet) Trojan loaded successfully. Testing... Terminal linked with 2 systems. Awaiting botnet instructions. 01041_ ALERT: Suspicious activity at Terminal M006. Dispatching Investigation squad. 01042_ K-01 Serf cleans the Terminal. LOCATION=UNKNOWN GOAL=ESCAPE 01129_ ALERT: Suspicious cave-in, suspected derelict activity in mines. Dispatching escorted excavation squad. Map ----- +----------------------------------------------------+ | | | | | | | | | | | | | | | | | | | | | ?????????????????????????????????????????????? | | ??????????????????????????????????#####??????? | | ?????????????????????????????????## ###????? | | ????????????????????????????###### #????? | | ???????????????????????????## ## #????? | | ???????????????????????????# ######????? | | ???????????????????????????# ##????????? | | ??????????????????????????## ##???????? | | ?????????????????????????## #???????? | | ?????????????????????????# ##???????? | | ????????????????????????## ######????????? | | ???????????????????????## ##?????????????? | | ??????????????????????## #??????????????? | | ??????????????????????# #??????????????? | | ??????????????????????#;### ##??????????????? | | ??????????????????????##a@####???????????????? | | ???????????????????????# ##??????????????????? | | ?????????????????####### #??????????????????? | | ?????????????????# #??????????????????? | | ?????????????????# #??????????????????? | | ?????????????????# #######??????????????????? | | ??????????????#### #####???????#?#??????????? | | ?????????????## # ###### #??????????? | | ????????????## #?????????? | | ????????????# """ ???????????? | | ????????????# """ ??????????????? | | ????????????# """ ??????????????? | | ????????????## #???????????? | | ?????????????## ##???????????? | | ??????????????# #????????????? | | ??????????????# ## #????????????? | | ??????????????# ?? #???????????? | | ??????????????# ?? ??????????? | | ??????????????# ?? ??????????? | | ??????????????# ?? ## ???????????? | | ??????????????# ?? ##?# ##???????????? | | ??????????????## ?? #???####????????????? | | ???????????????### ?? #???????????????????? | | ?????????????????##???? ##???????????????????? | | ???????????????????????##????????????????????? | +----------------------------------------------------+ Best States ------------- Heat Dissipation 35 Energy Generation 10 Energy Capacity 250 Matter Stores 300 Matter Capacity 300 Sight Range 16 Terrain Scan Density 10 Evasion (%) 55 Recoil Reduction 1 Item Schematics ----------------- None Robot Schematics ------------------ None Fabricated ------------ Nothing Alien Tech Used ----------------- None Achievements -------------- None Challenges ------------ None Game ------ Seed MinesnifferGyrokineticPick Manual? 0 Play Time 00:10:29 Cumulative 143.6 hours Start 2023.10.27 @ 17:32:40 End 2023.10.27 @ 17:42:52 Sessions 1 Manual Loads 0 Difficulty Rogue Special Mode None Game No. 103 Rogue 98 Adventurer 0 Explorer 5 Win Type - Total 2 Types 2/0/0/0/0/0/0/0/0 Lore% 57 Gallery% 67 Achievement% 47 Wizard Run 0 Options --------- ASCII 0 Keyboard 0 Movement Arrows Keybinds 1 Fullscreen 1 Font 18/TerminusBold Map View 76x50 Tactical HUD 1 Map Filters NONE Filters NONE Steam 1 RUN: c6ecf5b1-06ae-4148-969b-598813102ae6